Workbook

Sheet ポーカー
D1: 先手 | E1: 1
D2: 1 | E2: コンピュータ
D3: 2 | E3: 自分
B4: シャッフル回数
B5: 4
B6: （0～20回の範囲で）

Sheet 画像

Sheet シャッフル
A1: 番号 | B1: カード | C1: 強さ | G1: 乱数 | H1: 番号 | I1: カード枚数 | J1: 16 | L1: 順序 | M1: 番号 | N1: カードの数字 | O1: カードのマーク | W1: 優先順位
A2: 1 | B2: S01 | C2: 52 | G2: =RAND() -> 0.3759287189 | H2: 3 | I2: 1 | K2: PC手札 | L2: 1 | M2: 15 | N2: =MOD(M2-1,13)+1 -> 2 | O2: =INT((M2-1)/13)+1 -> 2 | Q2: =RAND() -> 0.6015250367 | R2: =RANK(Q2,$Q$2:$Q$53) -> 23 | T2: 役名 | U2: 点数 | W2: 番号 | X2: もどき | Y2: カードの種類
A3: 2 | B3: S02 | C3: 4 | G3: 0.953994192 | H3: 15 | I3: 1 | L3: 2 | M3: 3 | N3: =MOD(M3-1,13)+1 -> 3 | O3: =INT((M3-1)/13)+1 -> 1 | Q3: 0.2268273584 | R3: 43 | T3: ロイヤルストレートフラッシュ | U3: 50 | W3: 1
A4: 3 | B4: S03 | C4: 8 | E4: カードの種類 | G4: 0.1090290762 | H4: 5 | I4: 1 | L4: 5 | M4: 5 | N4: =MOD(M4-1,13)+1 -> 5 | O4: =INT((M4-1)/13)+1 -> 1 | Q4: 0.8064406305 | R4: 10 | T4: ストレートフラッシュ | U4: 40 | W4: 1
A5: 4 | B5: S04 | C5: 12 | E5: 番号-1を13で割る | G5: 0.6466811252 | H5: 23 | I5: 1 | L5: 4 | M5: 23 | N5: =MOD(M5-1,13)+1 -> 10 | O5: =INT((M5-1)/13)+1 -> 2 | Q5: 0.9292417594 | R5: 4 | T5: フォーカード | U5: 30 | W5: 1
A6: 5 | B6: S05 | C6: 16 | G6: 0.9719354965 | H6: 38 | I6: 1 | L6: 3 | M6: 38 | N6: =MOD(M6-1,13)+1 -> 12 | O6: =INT((M6-1)/13)+1 -> 3 | Q6: 0.1788365409 | R6: 50 | T6: フルハウス | U6: 25 | W6: 1
A7: 6 | B7: S06 | C7: 20 | E7: カードの数字 | G7: 0.6521331829 | H7: 17 | I7: 1 | Q7: 0.63928351 | R7: 19 | T7: フラッシュ | U7: 20 | Y7: 1
A8: 7 | B8: S07 | C8: 24 | E8: 番号-1のmod13 | G8: 0.9230073386 | H8: 34 | I8: 1 | L8: 10 | M8: 18 | N8: =MOD(M8-1,13)+1 -> 5 | O8: =INT((M8-1)/13)+1 -> 2 | Q8: 0.3322409575 | R8: 41 | T8: ストレート | U8: 15 | W8: 1 | X8: 2
A9: 8 | B9: S08 | C9: 28 | E9: に+1 | G9: 0.8769802278 | H9: 43 | I9: 1 | L9: 7 | M9: 35 | N9: =MOD(M9-1,13)+1 -> 9 | O9: =INT((M9-1)/13)+1 -> 3 | Q9: 0.6681066832 | R9: 17 | T9: スリーカード | U9: 10 | W9: 3
A10: 9 | B10: S09 | C10: 32 | G10: 0.681335281 | H10: 29 | I10: 1 | L10: 6 | M10: 16 | N10: =MOD(M10-1,13)+1 -> 3 | O10: =INT((M10-1)/13)+1 -> 2 | Q10: 0.1819793372 | R10: 49 | T10: ツーペア | U10: 5 | W10: 4
A11: 10 | B11: S10 | C11: 36 | G11: 0.3101923559 | H11: 42 | I11: 1 | L11: 9 | M11: 21 | N11: =MOD(M11-1,13)+1 -> 8 | O11: =INT((M11-1)/13)+1 -> 2 | Q11: 0.913358432 | R11: 6 | T11: ワンペア | U11: 2 | W11: 5
A12: 11 | B12: S11 | C12: 40 | G12: 0.6447393389 | H12: 18 | I12: 1 | L12: 8 | M12: 12 | N12: =MOD(M12-1,13)+1 -> 12 | O12: =INT((M12-1)/13)+1 -> 1 | Q12: 0.982948755 | R12: 1 | T12: ノーペア | U12: 0 | V12: 3枚連続 | W12: 6 | X12: 端は1でない
A13: 12 | B13: S12 | C13: 44 | G13: 0.3274803373 | H13: 35 | I13: 1 | Q13: 0.5013041011 | R13: 27
A14: 13 | B14: S13 | C14: 48 | G14: 0.1887559146 | H14: 16 | I14: 1 | Q14: 0.7537336251 | R14: 11 | W14: 8
A15: 14 | B15: D01 | C15: 51 | G15: 0.569995955 | H15: 21 | I15: 1 | L15: 順序 | M15: 番号 | N15: カードの数字 | O15: カードのマーク | Q15: 0.5991713748 | R15: 24
A16: 15 | B16: D02 | C16: 3 | E16: 2 | F16: 2 | G16: 0.04710058592 | H16: 12 | I16: 1 | K16: 対戦手札 | L16: 1 | M16: 17 | N16: =MOD(M16-1,13)+1 -> 4 | O16: =INT((M16-1)/13)+1 -> 2 | Q16: 0.7096905562 | R16: 14
A17: 16 | B17: D03 | C17: 7 | E17: 3 | F17: 1 | G17: 0.9594768379 | H17: 30 | I17: 1 | L17: 2 | M17: 34 | N17: =MOD(M17-1,13)+1 -> 8 | O17: =INT((M17-1)/13)+1 -> 3 | Q17: 0.4081925975 | R17: 33
A18: 17 | B18: D04 | C18: 11 | E18: 5 | F18: 1 | G18: 0.7812613651 | H18: 39 | I18: 0 | L18: 3 | M18: 43 | N18: 4 | O18: 4 | Q18: 0.2232499209 | R18: 44
A19: 18 | B19: D05 | C19: 15 | E19: 10 | F19: 2 | G19: 0.1699043136 | H19: 31 | I19: 0 | L19: 4 | M19: 29 | N19: 3 | O19: 3 | Q19: 0.8143864573 | R19: 9
A20: 19 | B20: D06 | C20: 19 | E20: 12 | F20: 3 | G20: 0.1719912066 | H20: 40 | I20: 0 | L20: 5 | M20: 42 | N20: 3 | O20: 4 | Q20: 0.7122525737 | R20: 13
A21: 20 | B21: D07 | C21: 23 | E21: 21123 | G21: 0.6460648596 | H21: 7 | I21: 0 | Q21: 0.4849411209 | R21: 29
A22: 21 | B22: D08 | C22: 27 | G22: 0.5862875067 | H22: 20 | I22: 0 | L22: 6 | Q22: 0.4904308243 | R22: 28
A23: 22 | B23: D09 | C23: 31 | E23: 1 | F23: 1 | G23: 0.6988905001 | H23: 52 | I23: 0 | L23: 7 | M23: 30 | Q23: 0.8375890083 | R23: 8
A24: 23 | B24: D10 | C24: 35 | E24: 1 | F24: 2 | G24: 0.4804920599 | H24: 45 | I24: 0 | L24: 8 | Q24: 0.603906191 | R24: 22
A25: 24 | B25: D11 | C25: 39 | E25: 1 | F25: 5 | G25: 0.08760485939 | H25: 33 | I25: 0 | L25: 9 | Q25: 0.7199614617 | R25: 12
A26: 25 | B26: D12 | C26: 43 | E26: 1 | F26: 2 | G26: 0.01192538081 | H26: 14 | I26: 0 | L26: 10 | Q26: 0.2032942886 | R26: 46
A27: 26 | B27: D13 | C27: 47 | E27: 1 | G27: 0.05440923153 | H27: 2 | I27: 0 | Q27: 0.380999961 | R27: 36
A28: 27 | B28: H01 | C28: 50 | E28: 87 | G28: 0.270531004 | H28: 1 | I28: 0 | L28: 6 | N28: =MOD(M28-1,13)+1 -> 13 | O28: =INT((M28-1)/13)+1 -> 0 | Q28: 0.679842009 | R28: 16
A29: 28 | B29: H02 | C29: 2 | G29: 0.5348797649 | H29: 37 | I29: 0 | L29: 7 | N29: =MOD(M29-1,13)+1 -> 13 | O29: =INT((M29-1)/13)+1 -> 0 | Q29: 0.6191045819 | R29: 21
A30: 29 | B30: H03 | C30: 6 | G30: 0.1290032735 | H30: 4 | I30: 0 | L30: 8 | N30: 13 | O30: 0 | Q30: 0.9029179383 | R30: 7
A31: 30 | B31: H04 | C31: 10 | G31: 0.4107604618 | H31: 48 | I31: 0 | L31: 9 | N31: 13 | O31: 0 | Q31: 0.9410042844 | R31: 3
A32: 31 | B32: H05 | C32: 14 | G32: 0.1139500746 | H32: 10 | I32: 0 | L32: 10 | N32: 13 | O32: 0 | Q32: 0.926238374 | R32: 5
A33: 32 | B33: H06 | C33: 18 | G33: 0.3755682092 | H33: 8 | I33: 0 | Q33: 0.4728293668 | R33: 30
A34: 33 | B34: H07 | C34: 22 | G34: =RAND() -> 0.52706173 | H34: 44 | I34: 0 | Q34: =RAND() -> 0.2877737512 | R34: =RANK(Q34,$Q$2:$Q$53) -> 42
A35: 34 | B35: H08 | C35: 26 | G35: 0.4477036414 | H35: 49 | I35: 0 | Q35: 0.1896676181 | R35: 48
A36: 35 | B36: H09 | C36: 30 | G36: 0.7383079597 | H36: 6 | I36: 0 | Q36: 0.217676374 | R36: 45
A37: 36 | B37: H10 | C37: 34 | G37: 0.8256968005 | H37: 9 | I37: 0 | Q37: 0.07927670362 | R37: 52
A38: 37 | B38: H11 | C38: 38 | G38: 0.5245658698 | H38: 19 | I38: 0 | Q38: 0.941715155 | R38: 2
A39: 38 | B39: H12 | C39: 42 | G39: 0.3108758828 | H39: 51 | I39: 0 | Q39: 0.3603539424 | R39: 39
A40: 39 | B40: H13 | C40: 46 | G40: 0.7795799622 | H40: 47 | I40: 0 | Q40: 0.3729407248 | R40: 37
A41: 40 | B41: C01 | C41: 49 | G41: 0.4053213738 | H41: 32 | I41: 0 | Q41: 0.3424779144 | R41: 40
A42: 41 | B42: C02 | C42: 1 | G42: 0.4123401299 | H42: 25 | I42: 0 | Q42: 0.4173150136 | R42: 32
A43: 42 | B43: C03 | C43: 5 | G43: 0.05978036223 | H43: 13 | I43: 0 | Q43: 0.386379068 | R43: 35
A44: 43 | B44: C04 | C44: 9 | G44: 0.6014701779 | H44: 41 | I44: 0 | Q44: 0.3670968772 | R44: 38
A45: 44 | B45: C05 | C45: 13 | G45: 0.559248544 | H45: 27 | I45: 0 | Q45: 0.2032400884 | R45: 47
A46: 45 | B46: C06 | C46: 17 | G46: 0.2908571458 | H46: 24 | I46: 0 | Q46: 0.591900498 | R46: 25
A47: 46 | B47: C07 | C47: 21 | G47: 0.5784674729 | H47: 11 | I47: 0 | Q47: 0.6912600377 | R47: 15
A48: 47 | B48: C08 | C48: 25 | G48: 0.9329571062 | H48: 46 | I48: 0 | Q48: 0.642666881 | R48: 18
A49: 48 | B49: C09 | C49: 29 | G49: 0.5152762123 | H49: 26 | I49: 0 | Q49: 0.4061547647 | R49: 34
A50: 49 | B50: C10 | C50: 33 | G50: 0.5239635324 | H50: 50 | I50: 0 | Q50: 0.55632428 | R50: 26
A51: 50 | B51: C11 | C51: 37 | G51: 0.4851719055 | H51: 28 | I51: 0 | Q51: 0.1055009331 | R51: 51
A52: 51 | B52: C12 | C52: 41 | G52: 0.628472794 | H52: 36 | I52: 0 | Q52: 0.4656164697 | R52: 31
A53: 52 | B53: C13 | C53: 45 | G53: 0.7777854962 | H53: 22 | I53: 0 | Q53: 0.6216063494 | R53: 20

Sheet Sheet1
E2: 1,3,8,9,10 で５枚替えの場合 | K2: 1,3,8,9,10 で「8,9,10」を残して２枚替えの場合 | P2: 4,5,7,8,12で「4,5,7,8」を残して１枚替え | V2: ○，○，○，○，× で，フラッシュを
P3: （1,2,3,4,8で「1,2,3,4」を残して１枚替えも結果は同じ）
B4: =COMBIN(52,5) -> 2598960 | K4: ワンペア | L4: =(2*3+COMBIN(4,2)*8+9*38)/(47*46/2) -> 0.3663274746
F5: =28*24*20/6 -> 2240 | G5: =32*28*24/6 -> 3584 | K5: ツーペア | L5: =(3*3*3)/(47*46/2) -> 0.02497687327 | P5: ストレート | Q5: =4/47 -> 0.08510638298 | V5: フラッシュ | W5: =9/47 -> 0.1914893617
F6: =28*24*15/2 -> 5040 | G6: =32*28*12/2 -> 5376 | K6: スリーカード | L6: =(3*3)/(47*46/2) -> 0.008325624422 | P6: ワンペア | Q6: =4*3/47 -> 0.2553191489 | V6: ワンペア | W6: =4*3/47 -> 0.2553191489
C7: =COMBIN(47,5) -> 1533939 | F7: =28*12*15/2 -> 2520 | G7: =32*9*12/2 -> 1728 | K7: ストレート | L7: =(4^2*3)/(47*46/2) -> 0.04440333025
F8: =9*12*15/6 -> 270 | G8: =6*9*12/6 -> 108
F9: =SUM(F5:F8) -> 10070 | G9: =SUM(G5:G8) -> 10796 | P9: 4,5,6,7,12で「4,5,6,7」を残して１枚替え | V9: ○，○，○，×，× で，フラッシュを
F10: =F9*COMBIN(4,2)*8 -> 483360 | G10: =G9*5*COMBIN(3,2) -> 161940 | H10: =SUM(F10:G10) -> 645300
G11: ワンペア | H11: =H10/C7 -> 0.4206816568 | P11: ストレート | Q11: =8/47 -> 0.170212766 | V11: フラッシュ | W11: =COMBIN(10,2)/COMBIN(47,2) -> 0.04162812211
P12: ワンペア | Q12: =4*3/47 -> 0.2553191489 | V12: ワンペア | W12: =(2*3+COMBIN(4,2)*8+9*38)/(47*46/2) -> 0.3663274746
F14: =COMBIN(4,2)*COMBIN(4,2)*COMBIN(8,2)*39 -> 39312
F15: =COMBIN(4,2)*COMBIN(3,2)*5*8*40 -> 28800 | P15: 4,5,6,7,7で「4,5,6,7」を残して１枚替え
F16: =COMBIN(3,2)*COMBIN(3,2)*COMBIN(5,2)*41 -> 3690
F17: =SUM(F14:F16) -> 71802 | P17: ストレート | Q17: =8/47 -> 0.170212766
E18: ツーペア | F18: =F17/C7 -> 0.04680890179 | P18: ワンペア | Q18: =11/47 -> 0.2340425532
F21: =COMBIN(4,3)*8*(28*24+28*15+15*12)/2 -> 20352
F22: =COMBIN(3,3)*5*(28*24+28*15+15*12)/2 -> 3180
E23: スリーカード | F23: =SUM(F21:F22)/C7 -> 0.01534089687
G25: =4^4*3*3 -> 2304
G26: =4^3*3^2*4 -> 2304
G27: =4^2*3^3*3 -> 1296
F28: ストレート | G28: =SUM(G25:G27)/C7 -> 0.003848914461
F30: ５枚替え | G30: =H11+F18+F23+G28 -> 0.4866803699 | K30: ２枚替え | L30: =SUM(L4:L7) -> 0.4440333025 | P30: １枚替え | Q30: =SUM(Q5:Q6) -> 0.3404255319 | V30: １枚替え | W30: =SUM(W5:W6) -> 0.4468085106
P31: １枚替え | Q31: =SUM(Q11:Q12) -> 0.4255319149 | V31: １枚替え | W31: =SUM(W11:W12) -> 0.4079555967
P32: １枚替え | Q32: =SUM(Q17:Q18) -> 0.4042553191
